bitfinex/quotes_ETHUSD_20220310
["timestamp","ask_amount","ask_price","bid_price","bid_amount"]
[1646908641451,2.16790563,2599.2,2598.8,1.03515502]
[1646908641452,0.9625703,2599.2,2598.8,1.03515502]
[1646908641655,3.5,2599.3,2598.9,0.0033435]
[1646908641856,0.9624705,2599.4,2598.9,0.9658035]
[1646908642060,0.37627028,2599.5,2598.9,0.9658035]
[1646908642256,0.32349064,2599.5,2598.9,0.9658035]
[1646908642556,0.43119064,2599.5,2599.0,0.96247]
[1646908642754,0.13119064,2599.5,2599.2,0.93681739]
[1646908643602,0.13119064,2599.5,2599.2,0.93041381]
[1646908644004,0.43119064,2599.5,2599.2,1.89613717]
[1646908644204,0.96237,2599.6,2599.2,1.89613717]
[1646908644404,0.77411586,2599.5,2599.3,0.96235]
[1646908644608,1.07411586,2599.5,2599.3,0.96235]
[1646908644806,0.3,2599.5,2599.3,0.96235]
[1646908645206,0.3,2599.5,2599.3,0.96569032]
[1646908645406,0.3,2599.5,2599.3,0.00334032]
[1646908645407,0.9623904,2599.5,2599.3,0.00334032]
[1646908646006,0.9623904,2599.5,2599.3,0.96569032]
[1646908646207,0.9623904,2599.5,2599.2,0.19777965]
[1646908646406,1.70540297,2599.4,2599.3,0.00334032]
[1646908647455,2.88048625,2599.4,2599.2,0.96245]
[1646908647654,2.13760258,2599.4,2598.9,4.88575416]
[1646908647855,1.17508328,2599.4,2598.9,4.88575416]
[1646908648255,1.17508328,2599.4,2599.0,0.96254]
[1646908648658,0.9625193,2599.3,2599.0,0.96254]
[1646908648857,0.9625193,2599.3,2599.0,0.96379965]
[1646908649862,0.9625193,2599.3,2599.0,0.96254]
[1646908650058,0.9625193,2599.3,2599.0,0.96588088]
[1646908651108,0.9625193,2599.3,2599.0,0.96254]
[1646908651309,0.9625193,2599.3,2599.0,0.96588088]
[1646908652112,4.4625193,2599.3,2599.0,0.96588088]
[1646908652310,0.9625193,2599.3,2599.0,0.96254]
[1646908652516,0.9625193,2599.3,2599.0,0.9658811]
[1646908652912,4.4625193,2599.3,2599.0,0.9658811]
[1646908653114,0.9625193,2599.3,2599.0,0.9658811]
[1646908653312,4.4625193,2599.3,2599.0,0.9658811]
[1646908653513,0.9625193,2599.3,2599.0,0.96254]
[1646908653812,4.4625193,2599.3,2599.0,1.1197111]
[1646908654015,0.13048393,2599.2,2599.0,1.1197111]
[1646908654656,2.05564303,2599.2,2599.0,1.11637]
[1646908654855,2.05564303,2599.2,2599.0,1.11971113]
[1646908655255,2.05564303,2599.2,2599.0,0.96588113]
[1646908655456,1.09303603,2599.2,2599.0,0.96588113]
[1646908655857,1.09303603,2599.2,2599.0,0.96254]
[1646908656057,1.09303603,2599.2,2599.0,0.96588109]
[1646908656964,1.09303603,2599.2,2599.0,1.92504]
[1646908657359,1.09303603,2599.2,2599.0,1.92838109]
[1646908658201,0.1923,2599.5,2599.1,66.57025402]
[1646908658403,0.1923,2600.0,2599.3,0.96225]
[1646908658599,0.70943785,2600.2,2599.8,1.20392398]
[1646908658600,0.77439669,2599.9,2599.8,1.20392398]
[1646908658800,0.77439669,2600.1,2599.6,0.553]
[1646908659000,0.77439669,2600.0,2599.6,2.7272]
[1646908659200,0.72804262,2600.3,2599.8,0.07791868]
[1646908659401,0.77470241,2600.2,2599.8,0.07791868]
[1646908659601,0.77470241,2600.2,2599.9,0.07041192]
[1646908660209,0.77470241,2600.2,2600.0,0.08375922]
[1646908660407,0.72804262,2600.3,2600.1,0.89585482]
[1646908660706,0.72804262,2600.3,2600.2,0.08910449]
[1646908661108,1.50299863,2600.3,2600.2,0.08910449]
[1646908662359,1.50299863,2600.3,2600.2,2.01303449]
[1646908663360,0.1922,2600.8,2600.3,89.5]
[1646908663561,2.88597,2601.2,2600.5,61.0]
[1646908663562,0.70943785,2601.2,2600.5,61.0]
[1646908663760,0.70943785,2601.2,2600.6,3.5833961]
[1646908663962,0.70943785,2601.2,2600.7,0.0845315]
[1646908664164,0.70943785,2601.3,2600.7,0.0845315]
[1646908664363,0.70943785,2601.0,2600.3,0.442]
[1646908664662,0.70943785,2600.9,2600.4,0.08009196]
[1646908664861,0.70943785,2600.9,2600.4,0.07215188]
[1646908665061,1.67143785,2600.9,2600.6,0.153742]
[1646908665267,1.67143785,2600.9,2600.4,1.03418188]
[1646908665466,0.9620097,2600.7,2600.4,1.03418188]
[1646908665726,2.10161395,2600.7,2600.4,1.03418188]
[1646908666124,2.10161395,2600.7,2600.3,0.74041274]
[1646908666323,1.13960425,2600.7,2600.2,3.04609356]
[1646908667523,1.43960425,2600.7,2600.3,1.92395]
[1646908667725,0.76636586,2600.6,2600.0,0.25]
[1646908667927,4.20943785,2600.5,2600.0,0.25]
[1646908668125,0.04810888,2600.4,2600.0,0.25]
[1646908668327,0.9623005,2600.4,2600.0,0.25]
[1646908668527,0.89602327,2600.1,2599.6,2.18137737]
[1646908668726,0.05890798,2600.0,2599.5,3.84893]
[1646908668926,0.05890798,2600.0,2599.5,1.9245]
[1646908669129,3.55890798,2600.0,2599.4,0.96241]
[1646908669358,3.55890798,2600.0,2599.3,0.01336477]
[1646908669359,0.04575542,2599.9,2599.3,0.01336477]
[1646908669559,0.04970472,2599.7,2599.3,0.01336477]
[1646908669762,1.15624599,2599.6,2599.3,0.01336477]
[1646908669961,0.05069099,2599.5,2599.3,0.01336477]
[1646908670358,0.05069099,2599.5,2599.2,0.25]
[1646908670359,3.55069099,2599.5,2599.2,0.25]
[1646908670562,0.05069099,2599.5,2599.2,0.25334109]
[1646908670758,0.05069099,2599.5,2599.3,0.96245]
[1646908672862,0.05069099,2599.5,2599.3,1.116262]
[1646908673298,0.05069099,2599.5,2599.3,0.96245]
[1646908674099,0.02514789,2599.4,2599.2,3.1403462]
[1646908675000,0.02514789,2599.4,2599.2,3.13721]
[1646908675400,0.02514789,2599.4,2599.2,3.14034613]
[1646908675607,0.02514789,2599.4,2599.2,2.17793613]
[1646908675803,0.02514789,2599.4,2599.2,1.92793613]
[1646908676006,0.02514789,2599.4,2599.2,0.00313613]
[1646908676206,3.52514789,2599.4,2599.2,0.00313613]
[1646908676407,0.05197158,2599.3,2599.2,0.00313613]
[1646908676606,0.05197158,2599.3,2599.2,0.00647713]
[1646908676857,0.05197158,2599.3,2599.2,0.003341]
[1646908677453,3.55197158,2599.3,2599.0,0.96258]
[1646908677653,0.87669209,2599.1,2599.0,0.96258]
[1646908678258,3.55197158,2599.3,2599.0,0.96258]
[1646908678460,3.85197158,2599.3,2599.0,0.96258]
[1646908678856,3.8771028,2599.3,2599.0,0.96258]
[1646908679257,3.8771028,2599.3,2599.0,0.96592798]
[1646908679456,4.81688976,2599.3,2599.0,1.92840798]
[1646908679858,4.81688976,2599.3,2599.0,1.92506]
[1646908680258,4.81688976,2599.3,2599.0,1.92829599]
[1646908680259,1.31688976,2599.3,2599.0,1.92829599]
[1646908680903,1.31688976,2599.3,2599.0,2.08212599]
[1646908681099,1.31688976,2599.3,2599.0,0.96248]
[1646908681502,1.31688976,2599.3,2599.0,0.96585029]
[1646908682902,1.31688976,2599.3,2599.0,1.92831029]
[1646908683507,0.77923143,2599.2,2599.0,0.96583029]
[1646908683709,3.55534136,2599.1,2599.0,0.00337029]
[1646908683904,4.33457279,2599.1,2599.0,0.0031791]
[1646908684655,4.33457279,2599.1,2599.0,0.153841]
[1646908685054,5.29735279,2599.1,2598.9,0.00302105]
[1646908685254,1.01774238,2599.0,2598.9,0.00302105]
[1646908685462,5.24202653,2599.0,2598.9,0.00302105]
[1646908686061,5.24202653,2599.0,2598.6,0.79342846]
[1646908686062,0.96284,2598.9,2598.6,0.79342846]
[1646908686261,1.74206913,2598.8,2598.4,0.26208622]
[1646908686459,0.81259385,2598.5,2598.4,0.26208622]
[1646908686760,0.81259385,2598.5,2598.4,1.034304]
[1646908687160,0.81259385,2598.5,2598.4,1.02221778]
[1646908687362,0.81259385,2598.5,2598.4,0.77221778]
[1646908687559,0.81259385,2598.5,2598.3,0.00326853]
[1646908687560,0.00109421,2598.4,2598.3,0.00326853]
[1646908688206,0.00109421,2598.4,2598.3,0.76589435]
[1646908688407,0.81487082,2598.4,2598.0,0.76262582]
[1646908688611,1.19124972,2598.2,2598.1,0.74378512]
[1646908688807,1.19124972,2598.2,2597.9,0.25]
[1646908689107,1.19124972,2598.2,2598.0,0.73842856]
[1646908689306,1.19124972,2598.2,2597.8,0.97617373]
[1646908689507,1.19124972,2598.2,2597.9,0.7383962]
[1646908689708,1.19124972,2598.2,2597.9,1.7013262]
[1646908689906,1.19124972,2598.2,2598.0,0.74169676]
[1646908690309,1.19124972,2598.2,2598.0,0.96614056]
[1646908690710,1.19124972,2598.2,2598.1,0.96282]
[1646908691974,0.00109421,2598.4,2598.2,0.96278]
[1646908692575,0.81259385,2598.5,2598.4,0.00047021]
[1646908692977,0.81259385,2598.5,2598.4,1.6555926]
[1646908693274,0.81259385,2598.5,2598.4,2.6182326]
[1646908693875,0.81259385,2598.5,2598.4,3.31364735]
[1646908694876,0.81259385,2598.5,2597.9,8.41854294]
[1646908695079,0.81259385,2598.5,2597.5,7.32]
[1646908695080,64.5,2598.3,2597.5,7.32]
[1646908695277,2.30986859,2598.2,2597.3,0.03731424]
[1646908695482,0.70943785,2598.0,2597.3,1.00032424]
[1646908695712,0.70943785,2598.0,2597.0,19.07431424]
[1646908695713,0.01217794,2597.4,2597.0,19.07431424]
[1646908695919,0.553,2597.3,2597.0,19.07431424]
[1646908696115,1.98543149,2597.2,2597.0,19.07431424]
[1646908696321,0.62007867,2597.1,2597.0,19.07431424]
[1646908696517,0.81257867,2597.1,2597.0,19.22826224]
[1646908696719,0.06707867,2597.1,2597.0,19.22826224]
[1646908696920,0.06707867,2597.1,2597.0,19.07431424]
[1646908697718,0.06707867,2597.1,2597.0,19.07338626]
[1646908701863,1.41479867,2597.1,2597.0,19.07338626]
[1646908702060,4.91479867,2597.1,2597.0,19.07338626]
[1646908702262,3.56707867,2597.1,2597.0,19.07338626]
[1646908703102,0.06707867,2597.1,2597.0,19.07338626]
[1646908704203,0.06707867,2597.1,2597.0,19.22735026]
[1646908704404,1.41479867,2597.1,2597.0,19.22735026]
[1646908704603,0.55608676,2597.1,2597.0,19.07338626]
[1646908704802,0.48900809,2597.1,2597.0,19.07338626]
[1646908705407,0.10470809,2597.1,2597.0,19.07338626]
[1646908706611,0.10470809,2597.1,2597.0,17.37352412]
[1646908708264,0.10470809,2597.1,2597.0,17.52748612]
[1646908708462,0.10470809,2597.1,2597.0,17.37352412]
[1646908709169,3.60470809,2597.1,2597.0,17.37352412]
[1646908710365,0.10470809,2597.1,2597.0,17.37352412]
[1646908712217,0.10470809,2597.1,2597.0,17.52748612]
[1646908712417,0.10470809,2597.1,2597.0,17.37352412]
[1646908712619,4.56814809,2597.1,2597.0,17.37352412]
[1646908713219,1.06814809,2597.1,2597.0,17.37352412]
[1646908713420,4.56814809,2597.1,2597.0,17.37352412]
[1646908715053,6.30831488,2597.1,2597.0,17.37352412]
[1646908715653,6.30831488,2597.1,2596.9,0.00348125]
[1646908715654,14.2899,2597.0,2596.9,0.00348125]
[1646908715853,13.89777835,2596.8,2596.1,0.0577904]
[1646908716053,12.1143,2596.6,2596.3,0.154004]
[1646908716253,12.1143,2596.6,2596.0,0.05953128]
[1646908716254,0.3843,2596.4,2596.0,0.05953128]
[1646908716458,15.23,2596.5,2596.0,0.05953128]
[1646908716459,0.3843,2596.2,2596.0,0.05953128]
[1646908716659,1.64829,2596.2,2596.0,0.05953128]
[1646908716857,1.34828,2596.1,2596.0,0.05953128]
[1646908717061,4.84828,2596.1,2596.0,0.05953128]
[1646908718513,4.46398,2596.1,2596.0,0.05953128]
[1646908718710,0.96398,2596.1,2596.0,0.05953128]
[1646908720009,0.96398,2596.1,2596.0,0.21355728]
[1646908720210,0.96398,2596.1,2596.0,0.05953128]
[1646908720914,4.46398,2596.1,2596.0,0.05953128]
[1646908721114,0.96398,2596.1,2596.0,0.05953128]
[1646908721313,3.1919548,2596.2,2596.0,0.05953128]
[1646908721314,3.1917548,2596.2,2596.0,0.05953128]
[1646908722356,2.2279748,2596.2,2596.0,0.05953128]
[1646908722556,1.50870973,2596.1,2596.0,0.06311259]
[1646908722756,2.2279748,2596.2,2596.0,0.06311259]
[1646908723355,3.1917548,2596.2,2596.0,0.06311259]
[1646908723555,3.1917548,2596.2,2596.0,0.05953128]
[1646908723556,0.10408366,2596.1,2596.0,0.05953128]
[1646908723755,0.10408366,2596.1,2596.0,0.06311259]
[1646908723956,0.10408366,2596.1,2596.0,0.21713859]
[1646908724156,0.10408366,2596.1,2596.0,0.06311259]
[1646908724759,0.10408366,2596.1,2596.0,0.05953128]
[1646908726402,0.10408366,2596.1,2595.5,0.00723712]
[1646908726403,0.9638769,2595.9,2595.5,0.00723712]
[1646908726605,64.5,2595.7,2595.0,3.19420389]
[1646908726802,2.06356104,2595.6,2595.0,3.28247141]
[1646908727009,0.01250143,2595.3,2595.0,3.28247141]
[1646908727411,3.5,2595.5,2595.0,3.28247141]
[1646908727611,1.9286279,2595.3,2595.0,3.28247141]
[1646908727812,1.9286279,2595.3,2595.0,3.43654941]
[1646908728110,61.0,2595.1,2594.9,0.06161864]
[1646908728310,61.0,2595.1,2594.6,0.04063232]
[1646908728311,0.02889128,2594.8,2594.6,0.04063232]
[1646908728510,0.99336048,2594.8,2594.6,0.04063232]
[1646908728719,0.99336048,2594.8,2594.6,0.05300036]
[1646908729659,0.99336048,2594.8,2594.6,0.04063232]
[1646908730063,0.99336048,2594.8,2594.6,0.04372407]
[1646908730360,1.29336048,2594.8,2594.6,0.04372407]
[1646908730763,0.99336048,2594.8,2594.6,0.04063232]
[1646908732268,0.99336048,2594.8,2594.6,0.04388145]
[1646908732467,1.29336048,2594.8,2594.6,0.04388145]
[1646908733118,1.29336048,2594.8,2594.6,0.04063232]
[1646908733308,2.25768048,2594.8,2594.6,0.04063232]
[1646908733508,2.25768048,2594.8,2594.6,0.04388145]
[1646908733914,0.04751601,2594.7,2594.6,0.04388145]
[1646908734414,0.04751601,2594.7,2594.6,0.04063232]
[1646908734614,0.04751601,2594.7,2594.6,0.03421087]
[1646908739560,0.04751601,2594.7,2594.6,0.04705377]
[1646908739963,1.58896231,2594.7,2594.6,0.04705377]
[1646908740161,0.04751601,2594.7,2594.6,0.04705377]
[1646908743719,0.04751601,2594.7,2594.6,3.54705377]
[1646908743917,0.04751601,2594.7,2594.6,0.60005377]
[1646908744120,1.73891789,2595.6,2594.7,48.3843]
[1646908744361,0.70943785,2595.7,2594.4,0.1925]
[1646908744362,59.0,2595.4,2594.4,0.1925]
[1646908744560,59.0,2595.4,2593.6,0.04012308]
[1646908744561,0.01250867,2594.5,2593.6,0.04012308]
[1646908744760,0.01250867,2594.5,2593.0,0.03571694]
[1646908744761,59.0,2594.4,2593.0,0.03571694]
[1646908744961,0.96469,2593.9,2593.0,0.08021862]
[1646908745161,1.59575362,2593.8,2593.0,0.08021862]
[1646908745466,1.02572578,2593.9,2593.3,0.3843]
[1646908745467,0.96469,2593.9,2593.3,0.3843]
[1646908745860,5.09579978,2593.8,2593.3,0.3843]
[1646908746061,1.59579978,2593.7,2593.3,0.3843]
[1646908746259,0.06971341,2593.6,2593.0,0.08021862]
[1646908746461,3.56971341,2593.6,2593.0,0.08021862]
[1646908746660,0.3,2593.8,2592.8,2.10177505]
[1646908746661,0.0653636,2593.5,2592.8,2.10177505]
[1646908746859,0.553,2594.0,2592.8,2.10177505]
[1646908746860,0.06797144,2593.9,2592.9,0.3843]
[1646908747063,0.96461,2593.9,2592.9,0.577]
[1646908747263,0.9645459,2593.8,2593.2,0.3843]
[1646908747463,0.9645459,2593.8,2593.1,0.25]
[1646908747665,3.5,2593.7,2593.1,0.25]
[1646908747864,0.06270355,2593.5,2593.0,0.154153]
[1646908748124,0.06230337,2593.3,2592.8,2.25592505]
[1646908748312,13.0,2593.2,2592.7,0.11128078]
[1646908748509,0.05809855,2593.2,2592.7,0.11128078]
[1646908748913,0.61109855,2593.2,2592.7,0.11128078]
[1646908749116,4.4649188,2593.1,2592.7,0.11128078]
[1646908749315,1.02196884,2593.0,2592.7,0.11128078]
[1646908749517,0.07465772,2592.8,2592.7,0.11128078]
[1646908749716,0.62765772,2592.8,2592.7,0.11128078]
[1646908749915,0.07465772,2592.8,2592.7,0.11128078]
[1646908750416,0.62765772,2592.8,2592.7,0.11128078]
[1646908750615,5.3181,2592.8,2592.7,0.11128078]
[1646908751018,6.37706677,2592.8,2592.7,0.11128078]
[1646908751317,6.37706677,2592.8,2592.3,0.0288948]
[1646908751318,2.8957928,2592.7,2592.3,0.0288948]
[1646908751518,4.2458,2592.6,2592.3,0.0288948]
[1646908751717,4.4958,2592.6,2592.3,0.0288948]
[1646908752170,4.303,2592.6,2592.3,0.0288948]
[1646908752471,5.26826,2592.6,2592.3,0.0288948]
[1646908752668,5.26826,2592.6,2592.5,0.04521535]
[1646908752669,5.65256,2592.6,2592.5,0.04521535]
[1646908752868,5.65256,2592.6,2592.3,0.0288948]
[1646908752869,42.5,2592.5,2592.4,0.01875002]
[1646908753069,43.053,2592.5,2592.4,0.0346107]
[1646908753868,43.4373,2592.5,2592.4,0.03105783]
[1646908754070,43.4373,2592.5,2592.4,5.783e-05]
[1646908754270,44.6301,2592.5,2592.4,5.783e-05]
[1646908755806,44.6301,2592.5,2592.4,0.15430583]
[1646908756011,0.7458,2592.5,2592.4,5.783e-05]
[1646908756206,0.25,2592.6,2592.4,5.783e-05]
[1646908756613,0.9652628,2592.7,2592.4,5.783e-05]
[1646908756811,2.97499071,2592.8,2592.6,1.17364684]
[1646908756812,0.07920251,2592.8,2592.6,1.17364684]
[1646908757011,0.07920251,2592.8,2592.4,5.783e-05]
[1646908757412,0.06952363,2592.8,2592.4,5.783e-05]
[1646908757811,0.06952363,2592.8,2592.5,0.00303994]
[1646908758211,0.06952363,2592.8,2592.6,0.98472469]
[1646908758814,1.9295613,2593.5,2592.7,0.3843]
[1646908759017,1.9295613,2593.5,2592.6,0.98472469]
[1646908759217,0.964804,2593.1,2592.6,0.00303989]
[1646908759459,7.02649819,2593.0,2592.6,0.00303989]
[1646908759658,1.93028,2593.0,2592.6,0.00303989]
[1646908759857,2.23028,2593.0,2592.6,0.00303989]
[1646908760062,0.1928,2592.9,2592.5,0.03166353]
[1646908760263,0.1928,2592.9,2592.7,0.00303236]
[1646908760564,2.1230197,2592.9,2592.7,0.00303236]
[1646908760761,0.3,2592.8,2592.7,0.00303236]
[1646908761167,0.3,2592.8,2592.5,0.03166353]
[1646908761168,0.00494188,2592.6,2592.5,0.03166353]
[1646908761569,3.50494188,2592.6,2592.5,0.03166353]
[1646908761863,5.40125441,2592.6,2592.5,0.03166353]
[1646908762063,7.33172441,2592.6,2592.5,0.03166353]
[1646908762666,3.83172441,2592.6,2592.5,0.03166353]
[1646908763116,47.0,2592.5,2592.4,0.00121308]
[1646908763304,61.71061253,2592.5,2592.4,1.308e-05]
[1646908763504,62.67597313,2592.5,2592.3,0.0288948]
[1646908763708,5.39631253,2592.4,2592.3,0.0288948]
[1646908764209,8.32695253,2592.4,2592.3,0.0288948]
[1646908764410,8.32699495,2592.4,2592.3,0.0288948]
[1646908764609,6.73064,2592.4,2592.3,0.0288948]
[1646908764810,8.32698768,2592.4,2592.3,0.0288948]
[1646908765211,3.23064,2592.4,2592.3,0.0288948]
[1646908765415,1.9305906,2592.5,2592.3,0.0288948]
[1646908766214,2.2305906,2592.5,2592.3,0.0288948]
[1646908766612,2.2305906,2592.5,2591.8,0.0184951]
[1646908766613,0.9651987,2592.3,2591.6,1.91429039]
[1646908766851,0.9651987,2592.3,2591.7,0.00100139]
[1646908766852,1.9303987,2592.3,2591.7,0.00100139]
[1646908767058,1.9303987,2592.3,2592.0,0.9652]
[1646908767257,0.9651987,2592.3,2592.0,0.9652]
[1646908767457,0.9651987,2592.3,2592.0,0.7652]
[1646908768460,1.9303987,2592.3,2592.0,0.7652]
[1646908768661,1.9303987,2592.3,2592.0,0.76877369]
[1646908769660,1.9303987,2592.3,2592.0,0.7652]
[1646908769861,1.9303987,2592.3,2592.0,0.76877369]
[1646908770060,1.9303987,2592.3,2592.0,0.00357369]
[1646908770261,0.96528,2592.1,2592.0,0.00357369]
[1646908770715,1.03747129,2592.1,2591.7,1.93052]
[1646908770916,1.03750829,2592.1,2591.8,0.96529]
[1646908771214,0.96531,2591.9,2591.7,1.93052]
[1646908772319,0.96531,2591.9,2591.7,1.93397593]
[1646908772519,1.9306666,2591.9,2591.7,1.93397593]
[1646908772823,0.07053527,2591.8,2591.7,0.00345593]
[1646908773019,3.57053527,2591.8,2591.7,0.00345593]
[1646908773218,0.07053527,2591.8,2591.7,0.00345593]
[1646908773419,0.07053527,2591.8,2591.5,0.30008636]
[1646908773619,0.96543,2591.7,2591.6,0.00345596]
[1646908774221,2.00148577,2591.8,2591.6,0.00345596]
[1646908774454,0.06277012,2591.7,2591.5,1.26545636]
[1646908774653,0.06277012,2591.7,2591.5,1.41971236]
[1646908774854,0.06277012,2591.7,2591.5,1.26891237]
[1646908775454,1.02808412,2591.7,2591.5,1.26891237]
[1646908775654,1.02808412,2591.7,2591.5,1.26545636]
[1646908775853,1.02808412,2591.7,2591.5,0.30008636]
[1646908776054,1.02808412,2591.7,2591.5,0.30315489]
[1646908776255,0.06171308,2591.6,2591.5,0.30315489]
[1646908776455,3.56171308,2591.6,2591.5,0.30315489]
[1646908776658,3.5,2591.6,2591.5,0.30315489]
[1646908776854,0.965314,2591.7,2591.5,0.30315489]
[1646908776855,4.849614,2591.7,2591.5,0.30315489]
[1646908777060,1.349614,2591.7,2591.5,0.30008636]
[1646908777263,3.5,2591.6,2591.5,0.30008636]
[1646908777661,2.896284,2591.7,2591.5,0.30008636]
[1646908777863,6.396284,2591.7,2591.5,0.30008636]
[1646908778115,2.896284,2591.7,2591.5,0.30008636]
[1646908778311,6.396284,2591.7,2591.5,0.30008636]
[1646908778706,3.5,2591.6,2591.5,0.45438536]
[1646908778907,0.03824199,2591.6,2591.5,0.30008636]
[1646908780411,3.53824199,2591.6,2591.5,0.30008636]
[1646908780610,0.03824199,2591.6,2591.5,0.30008636]
[1646908782461,0.03824199,2591.6,2591.5,0.45438236]
[1646908782860,0.03824199,2591.6,2591.5,0.03092392]
[1646908783664,2.12748649,2591.6,2591.5,0.03092392]
[1646908783862,1.63468649,2591.6,2591.5,0.03092392]
[1646908784262,0.03824199,2591.6,2591.5,0.03092392]
[1646908784663,1.63461091,2591.6,2591.5,0.03092392]
[1646908785461,0.03824199,2591.6,2591.5,0.03092392]
[1646908786307,2.1233541,2592.0,2591.5,0.03092392]
[1646908786505,1.91424061,2592.5,2591.6,0.96505]
[1646908786706,0.00494188,2592.6,2591.7,3.81375881]
[1646908786707,1.59597102,2592.4,2591.7,3.81375881]
[1646908786907,0.00494188,2592.6,2591.7,3.42945881]
[1646908786908,1.59597102,2592.3,2591.7,3.42945881]
[1646908787110,1.59597102,2592.2,2591.6,4.82469]
[1646908787308,0.00494188,2592.6,2591.9,0.97600947]
[1646908787309,1.59597102,2592.1,2591.9,0.97600947]
[1646908787505,0.06578058,2592.4,2591.9,0.97600947]
[1646908787506,1.59597102,2592.0,2591.9,0.97600947]
[1646908788006,1.59597102,2592.0,2591.9,4.47600947]
[1646908788206,1.59598834,2592.0,2591.9,0.97930711]
[1646908788406,1.59598834,2592.0,2591.9,1.94433711]
[1646908788606,1.59598834,2592.0,2591.9,0.97930711]
[1646908788806,1.59598834,2592.4,2591.9,0.97930711]
[1646908789009,1.59598834,2592.4,2591.9,2.90597947]
[1646908789010,2.56112244,2592.4,2591.9,2.90597947]
[1646908789208,1.59598834,2592.3,2591.9,2.90597947]
[1646908789865,0.06820507,2592.2,2591.9,1.92997]
[1646908790068,0.70943785,2592.1,2591.9,1.92997]
[1646908790266,1.66600475,2592.0,2591.9,1.92997]
[1646908790466,1.59598834,2592.0,2591.9,2.084215]
[1646908790666,1.59598834,2592.0,2591.9,1.92997]
[1646908792971,0.3,2592.1,2591.9,1.92997]
[1646908792972,2.60542619,2592.1,2591.9,1.92997]
[1646908793206,1.59598834,2592.0,2591.9,1.92997]
[1646908794206,1.62620196,2592.0,2591.9,2.084241]
[1646908794605,2.33563981,2592.0,2591.9,1.92997]
[1646908794808,1.62620196,2592.0,2591.9,1.92997]
[1646908796962,1.62620196,2592.0,2591.8,1.93368767]
[1646908797163,1.59598834,2591.9,2591.8,1.93368767]
[1646908797366,1.59598834,2591.9,2591.8,1.93029]
[1646908797862,1.59598834,2591.9,2591.8,1.9336877]
[1646908798063,1.59598834,2591.9,2591.8,2.0879527]
[1646908798662,1.59598834,2591.9,2591.8,5.43029]
[1646908799062,1.59598834,2591.9,2591.8,1.93029]
[1646908799764,0.03021362,2592.0,2591.8,64.98329]
[1646908799966,0.03021362,2592.0,2591.9,3.5]
[1646908800162,0.00029182,2592.1,2592.0,78.0]
[1646908800363,0.00029182,2592.1,2591.9,2.48287]
[1646908800613,0.00029182,2592.1,2592.0,3.5]
[1646908800819,0.00029182,2592.1,2591.9,2.48287]
[1646908801224,0.00029182,2592.1,2591.9,3.4478]
[1646908801424,0.00029182,2592.1,2591.9,3.45135315]
[1646908801620,0.00029182,2592.1,2592.0,3.5]
[1646908802624,0.00029182,2592.1,2591.9,3.44920711]
[1646908803520,0.00029182,2592.1,2591.9,3.4478]
[1646908803720,0.00029182,2592.1,2591.9,3.44921026]
[1646908804120,0.00029182,2592.1,2592.0,3.5]
[1646908804366,0.00029182,2592.1,2591.9,3.44921026]
[1646908804567,0.00029182,2592.1,2591.9,3.4478]
[1646908804767,0.00029182,2592.1,2592.0,3.5]
[1646908804967,0.00029182,2592.1,2592.0,4.053]
[1646908805169,0.05324514,2592.1,2592.0,1.553]
[1646908805367,0.05324514,2592.1,2592.0,0.553]
[1646908809211,4.514e-05,2592.1,2592.0,4.053]
[1646908809413,4.514e-05,2592.1,2592.0,9.9827]
[1646908809912,0.00494188,2592.6,2592.3,0.96483]
[1646908810115,0.00494188,2592.6,2592.4,0.96484]
[1646908810415,0.00494188,2592.6,2592.4,0.553]
[1646908810612,0.00494188,2592.6,2592.5,0.89784746]
[1646908811012,0.00494188,2592.6,2592.5,3.38044746]
[1646908812575,0.00494188,2592.6,2592.5,4.38044746]
[1646908812775,0.00494188,2592.6,2592.5,3.38044746]
[1646908813183,0.00494188,2592.6,2592.5,3.44337017]
[1646908813475,0.00494188,2592.6,2592.5,3.54756617]
[1646908813875,0.00494188,2592.6,2592.5,4.39337017]
[1646908814679,0.03202377,2592.6,2592.5,4.39337017]
[1646908814877,0.03202377,2592.6,2592.5,4.33044746]
[1646908817219,0.03202377,2592.6,2592.5,3.77744746]
[1646908818419,0.01850537,2592.6,2592.5,3.77744746]
[1646908818819,0.04546866,2592.6,2592.5,3.77744746]
[1646908819121,0.03195026,2592.6,2592.5,3.77744746]
[1646908819357,0.03195026,2592.6,2592.5,7.27744746]
[1646908819958,0.03195026,2592.6,2592.5,3.77744746]
[1646908820157,0.03195026,2592.6,2592.5,7.27744746]
[1646908820560,0.06281998,2593.4,2592.6,70.0]
[1646908820757,0.1928,2593.7,2592.9,0.96464]
[1646908820758,0.07055758,2593.2,2592.9,0.96464]
[1646908820958,1.59568626,2593.1,2592.9,1.92925]
[1646908821759,1.59568626,2593.1,2593.0,1.09029166]
[1646908821963,1.59568626,2593.1,2593.0,0.96464]
[1646908825115,1.59568626,2593.1,2593.0,1.118822]
[1646908825316,1.59568626,2593.1,2593.0,0.96464]
[1646908826118,0.07278471,2593.5,2593.2,0.96448]
[1646908826318,0.5788,2593.9,2593.3,3.5]
[1646908826319,1.59544571,2593.4,2593.3,3.5]
[1646908826516,1.59544571,2593.4,2593.2,1.928898]
[1646908826717,0.07298166,2593.7,2593.2,44.96444]
[1646908826963,0.07298166,2593.7,2593.3,0.90635087]
[1646908827365,0.07298166,2593.7,2593.5,0.96443]
[1646908827564,0.07096349,2593.9,2593.5,0.96443]
[1646908827765,0.07096349,2593.9,2593.8,1.23292994]
[1646908828566,0.07096349,2593.9,2593.8,2.19731994]
[1646908828765,0.07096349,2593.9,2593.8,0.96439]
[1646908828969,0.07096349,2593.9,2593.8,1.118536]
[1646908829769,0.07096349,2593.9,2593.8,0.96439]
[1646908830175,1.16470134,2593.9,2593.7,1.92878]
[1646908830370,0.06576554,2593.8,2593.7,0.22707286]
[1646908830621,1.15950339,2593.8,2593.6,1.921992]
[1646908830811,0.06355367,2593.7,2593.1,1.15446856]
[1646908831013,0.3843,2593.5,2593.1,0.01316856]
[1646908831210,0.3843,2593.5,2592.9,13.40217234]
[1646908831211,0.06727945,2593.4,2593.2,3.85898]
[1646908832015,0.06727945,2593.4,2593.1,0.97725512]
[1646908832016,1.08977802,2593.3,2593.1,0.97725512]
[1646908832216,0.06038555,2593.2,2593.1,0.01233512]
[1646908832416,0.3843,2593.1,2592.4,0.00100139]
[1646908832618,0.44301575,2592.9,2592.8,0.01233522]
[1646908832816,0.74301575,2592.9,2592.8,0.01233522]
[1646908833015,0.6843,2592.9,2592.8,0.01233522]
[1646908833619,0.6843,2592.9,2592.6,0.96511]
[1646908833918,1.3494,2592.8,2592.7,0.00311638]
[1646908834761,1.3494078,2592.8,2592.6,0.96511]